bitfinex-derivatives/quotes_BTCF0:USTF0_20240829
["timestamp","ask_amount","ask_price","bid_price","bid_amount"]
[1724975110407,0.01325139,59403.0,59402.0,0.702618]
[1724975110801,0.01325139,59403.0,59402.0,0.498459]
[1724975111002,0.01325139,59403.0,59402.0,0.702618]
[1724975112108,0.01325139,59403.0,59402.0,0.618459]
[1724975112407,0.01325139,59403.0,59402.0,0.702618]
[1724975112703,0.01325139,59403.0,59402.0,0.618459]
[1724975113504,0.13325139,59403.0,59402.0,0.446959]
[1724975114708,0.01325139,59403.0,59402.0,0.446959]
[1724975117113,0.06615139,59403.0,59402.0,0.446959]
[1724975117617,0.0957666,59403.0,59402.0,0.446959]
[1724975119117,0.0957666,59403.0,59402.0,0.3628]
[1724975119315,0.1799246,59403.0,59402.0,0.3628]
[1724975120408,0.6849646,59403.0,59402.0,0.3628]
[1724975120607,0.084172,59393.0,59392.0,0.00025254]
[1724975120812,0.204172,59393.0,59392.0,0.00025254]
[1724975121019,1.309292,59393.0,59392.0,0.00025254]
[1724975121323,1.412092,59393.0,59392.0,0.00025254]
[1724975121521,1.912092,59393.0,59392.0,0.00025254]
[1724975121714,1.192092,59393.0,59392.0,0.00125254]
[1724975122020,0.5512,59393.0,59392.0,0.00125254]
[1724975122520,0.63804918,59393.0,59392.0,0.00125254]
[1724975123020,0.63804918,59393.0,59392.0,0.00325254]
[1724975123328,0.64104918,59393.0,59392.0,0.00325254]
[1724975123614,0.14104918,59393.0,59392.0,0.00325254]
[1724975123918,0.14404918,59393.0,59392.0,0.00025254]
[1724975124120,0.09284918,59393.0,59392.0,0.08442554]
[1724975124416,0.03694918,59393.0,59392.0,0.08442554]
[1724975124806,0.03394918,59393.0,59392.0,0.08442554]
[1724975125120,0.39151644,59400.0,59396.0,0.084168]
[1724975125319,0.39151644,59400.0,59397.0,0.084166]
[1724975125519,0.03071644,59400.0,59397.0,0.084166]
[1724975125715,0.14824171,59401.0,59397.0,0.084166]
[1724975126319,0.12,59401.0,59397.0,0.084166]
[1724975126720,0.12,59398.0,59397.0,0.084166]
[1724975127920,0.003,59398.0,59397.0,0.084166]
[1724975128217,0.006,59398.0,59397.0,0.084166]
[1724975128819,0.006,59398.0,59397.0,0.204166]
[1724975132220,0.00025139,59403.0,59398.0,0.084165]
[1724975132422,0.00025139,59403.0,59402.0,0.564959]
[1724975133519,0.00725139,59403.0,59402.0,0.565959]
[1724975133922,0.00425139,59403.0,59402.0,0.565959]
[1724975134113,0.00725139,59403.0,59402.0,0.446959]
[1724975147831,0.00725139,59403.0,59402.0,0.086159]
[1724975148037,0.00725139,59403.0,59402.0,0.446959]
[1724975154236,0.00725139,59403.0,59402.0,0.566959]
[1724975158529,0.02824171,59411.0,59402.0,0.651118]
[1724975158727,0.02824171,59411.0,59410.0,0.12]
[1724975158929,0.0590182,59411.0,59410.0,0.12]
[1724975159133,0.02824171,59411.0,59410.0,0.084148]
[1724975159730,0.02924171,59411.0,59410.0,0.084148]
[1724975159937,0.02924171,59411.0,59410.0,0.204148]
[1724975160342,0.02924171,59411.0,59410.0,0.205148]
[1724975161537,0.02824171,59411.0,59410.0,0.206148]
[1724975164047,0.02824171,59411.0,59410.0,0.086148]
[1724975169138,0.02824171,59411.0,59410.0,0.087148]
[1724975169333,0.03014018,59413.0,59412.0,0.084145]
[1724975169548,0.12,59417.0,59414.0,0.084142]
[1724975170847,0.14986404,59417.0,59414.0,0.084142]
[1724975171751,0.23400304,59417.0,59414.0,0.084142]
[1724975172943,0.084141,59415.0,59414.0,0.084142]
[1724975178247,0.444941,59415.0,59414.0,0.084142]
[1724975179257,0.14986404,59417.0,59414.0,0.084142]
[1724975180250,0.084141,59415.0,59414.0,0.084142]
[1724975182755,0.02986404,59417.0,59416.0,0.084139]
[1724975182963,0.08413,59423.0,59415.0,0.12]
[1724975183160,0.1723,59421.0,59414.0,0.0512]
[1724975184753,0.2006274,59421.0,59413.0,0.3608]
[1724975184960,0.12,59414.0,59413.0,0.3608]
[1724975185460,0.12,59414.0,59413.0,0.444944]
[1724975185761,0.204142,59414.0,59413.0,0.3608]
[1724975186564,0.204142,59414.0,59410.0,0.084147]
[1724975186760,0.5283274,59417.0,59406.0,0.3647]
[1724975186761,0.12,59411.0,59406.0,0.3647]
[1724975186963,0.0283274,59416.0,59406.0,0.3608]
[1724975186964,0.12,59408.0,59406.0,0.3608]
[1724975187258,0.12,59408.0,59402.0,0.084158]
[1724975187259,0.084153,59406.0,59402.0,0.084158]
[1724975188168,0.1104804,59406.0,59402.0,0.084158]
[1724975188470,0.5283274,59406.0,59402.0,0.084158]
[1724975188663,0.5,59406.0,59402.0,0.084158]
[1724975188860,0.6114804,59406.0,59402.0,0.084158]
[1724975189058,0.6114804,59406.0,59405.0,0.00825254]
[1724975189460,0.6114804,59406.0,59405.0,0.01525254]
[1724975191851,0.64207409,59406.0,59405.0,0.01525254]
[1724975193365,0.55792109,59406.0,59405.0,0.58020754]
[1724975193567,0.52959369,59406.0,59405.0,0.58020754]
[1724975193864,0.03059369,59406.0,59405.0,0.58020754]
[1724975194362,0.0283274,59409.0,59408.0,0.084151]
[1724975194558,0.0283274,59409.0,59408.0,0.204151]
[1724975194959,0.0283274,59411.0,59410.0,0.084148]
[1724975195271,0.0541,59413.0,59410.0,0.444948]
[1724975195658,0.0849252,59413.0,59410.0,0.444948]
[1724975196358,0.0849252,59413.0,59410.0,0.446948]
[1724975197165,0.0849252,59413.0,59412.0,0.084145]
[1724975198966,0.0849252,59413.0,59410.0,0.3608]
[1724975199156,0.204146,59411.0,59409.0,0.084149]
[1724975200262,0.5,59410.0,59405.0,0.00025254]
[1724975200462,0.084153,59406.0,59405.0,0.00025254]
[1724975200665,0.167306,59406.0,59405.0,0.00025254]
[1724975200964,0.167306,59406.0,59400.0,0.0039]
[1724975200965,0.084161,59401.0,59400.0,0.0039]
[1724975201167,0.082166,59397.0,59396.0,0.0039]
[1724975201471,0.118,59397.0,59393.0,0.3608]
[1724975201772,0.12,59394.0,59393.0,0.3608]
[1724975202070,0.0203274,59395.0,59393.0,0.3608]
[1724975202272,0.3811274,59398.0,59393.0,0.3608]
[1724975202569,0.5,59394.0,59393.0,0.3608]
[1724975202754,0.5,59397.0,59393.0,0.3608]
[1724975202957,0.08417,59394.0,59393.0,0.3608]
[1724975203961,0.58417,59394.0,59393.0,0.3618]
[1724975204167,0.58517,59394.0,59393.0,0.3618]
[1724975204368,0.08517,59394.0,59393.0,0.3618]
[1724975204954,0.58517,59394.0,59393.0,0.3618]
[1724975205162,0.58517,59394.0,59393.0,0.3608]
[1724975205367,0.001,59394.0,59393.0,0.3618]
[1724975205963,0.001,59394.0,59393.0,0.445972]
[1724975209270,0.001,59394.0,59393.0,0.806772]
[1724975211274,0.001,59394.0,59393.0,1.096772]
[1724975213472,0.001,59394.0,59393.0,0.806772]
[1724975216267,0.001,59394.0,59393.0,0.085172]
[1724975216568,0.001,59394.0,59393.0,0.806772]
[1724975218276,0.03182527,59394.0,59393.0,0.806772]
[1724975218463,0.001,59394.0,59393.0,0.806772]
[1724975218968,0.001,59394.0,59393.0,1.096772]
[1724975220571,0.001,59394.0,59393.0,0.806772]
[1724975229375,1e-06,59394.0,59393.0,2.286064]
[1724975229778,1e-06,59394.0,59393.0,1.686064]
[1724975230885,1e-06,59394.0,59393.0,1.71712275]
[1724975231975,1e-06,59394.0,59393.0,1.21200275]
[1724975235682,1e-06,59394.0,59393.0,0.83783075]
[1724975236075,1e-06,59394.0,59393.0,0.95783075]
[1724975236780,1e-06,59394.0,59393.0,0.926772]
[1724975238581,1e-06,59394.0,59393.0,0.205172]
[1724975238889,1e-06,59394.0,59393.0,0.926772]
[1724975242785,1e-06,59394.0,59393.0,0.205172]
[1724975242985,1e-06,59394.0,59393.0,0.925772]
[1724975243191,0.0576,59397.0,59396.0,0.084168]
[1724975243788,0.0576,59397.0,59396.0,0.444968]
[1724975243988,0.0576,59397.0,59396.0,0.084168]
[1724975244192,0.0576,59397.0,59396.0,0.444968]
[1724975244387,0.265766,59397.0,59396.0,0.3608]
[1724975244596,0.322366,59397.0,59396.0,0.3608]
[1724975244781,0.323366,59397.0,59396.0,0.3608]
[1724975245495,0.03256245,59397.0,59396.0,0.444968]
[1724975245695,0.005,59397.0,59396.0,0.444968]
[1724975245991,0.003,59397.0,59396.0,0.498868]
[1724975246188,0.003,59397.0,59396.0,0.859668]
[1724975246692,0.001,59397.0,59396.0,0.943836]
[1724975246897,0.00025254,59399.0,59398.0,0.084165]
[1724975247094,0.00025254,59399.0,59398.0,0.204165]
[1724975248201,0.00025254,59399.0,59398.0,0.28833]
[1724975248398,0.0541,59411.0,59405.0,0.084155]
[1724975248598,0.0541,59411.0,59410.0,0.084148]
[1724975248599,0.08449886,59411.0,59410.0,0.084148]
[1724975248897,0.08449886,59411.0,59410.0,0.564948]
[1724975251401,0.08449886,59411.0,59410.0,0.565948]
[1724975257093,0.08449886,59411.0,59410.0,0.205148]
[1724975257407,0.0541,59411.0,59410.0,0.565948]
[1724975258104,0.0541,59411.0,59410.0,0.205148]
[1724975258508,0.0541,59411.0,59410.0,0.565948]
[1724975259698,0.5,59415.0,59410.0,0.4818]
[1724975259905,0.0039,59420.0,59414.0,0.204142]
[1724975260204,0.056,59421.0,59420.0,0.084134]
[1724975262011,0.3242,59424.0,59423.0,0.084129]
[1724975262307,0.056,59426.0,59425.0,0.084127]
[1724975262701,0.056,59426.0,59423.0,0.48172]
[1724975262702,0.02763835,59428.0,59427.0,0.084124]
[1724975262908,0.0561,59429.0,59428.0,0.084122]
[1724975263109,0.08710998,59429.0,59428.0,0.444922]
[1724975264301,0.58710998,59429.0,59428.0,0.444922]
[1724975264496,0.59410998,59429.0,59428.0,0.445922]
[1724975264702,0.21510998,59429.0,59428.0,0.446922]
[1724975264902,0.24274833,59429.0,59428.0,0.446922]
[1724975265909,0.21510998,59429.0,59428.0,0.446922]
[1724975266596,0.24274833,59429.0,59428.0,0.446922]
[1724975270600,0.21510998,59429.0,59428.0,0.446922]
[1724975271102,0.71510998,59429.0,59428.0,0.446922]
[1724975271509,0.71510998,59429.0,59428.0,0.086122]
[1724975271701,0.71510998,59429.0,59428.0,0.446922]
[1724975272707,0.59510998,59429.0,59428.0,0.446922]
[1724975273112,0.09510998,59429.0,59428.0,0.446922]
[1724975276106,0.09510998,59429.0,59428.0,0.086122]
[1724975276304,0.09510998,59429.0,59428.0,0.446922]
[1724975276502,0.03900998,59429.0,59428.0,0.446922]
[1724975280304,0.008,59429.0,59428.0,0.502322]
[1724975281311,0.5,59436.0,59428.0,1.523]
[1724975281511,0.1239,59441.0,59435.0,0.3608]
[1724975281711,0.12,59436.0,59435.0,0.3608]
[1724975281909,0.204111,59436.0,59435.0,0.3608]
[1724975282214,0.12,59436.0,59435.0,0.444912]
[1724975282920,0.12,59436.0,59435.0,0.3608]
[1724975282921,0.204111,59436.0,59435.0,0.3608]
[1724975283107,0.204111,59436.0,59432.0,0.00025254]
[1724975283108,0.084115,59433.0,59432.0,0.00025254]
[1724975283311,0.204115,59433.0,59432.0,0.00025254]
[1724975283710,0.704115,59433.0,59432.0,0.00025254]
[1724975283912,0.73146237,59433.0,59432.0,0.00025254]
[1724975284619,0.73646237,59433.0,59432.0,0.00125254]
[1724975284813,1.84122237,59433.0,59432.0,0.00125254]
[1724975285909,1.24122237,59433.0,59432.0,0.00125254]
[1724975286313,1.24122237,59433.0,59432.0,0.00225254]
[1724975287621,0.084121,59429.0,59428.0,0.3608]
[1724975287824,0.204121,59429.0,59428.0,0.3608]
[1724975288516,0.704121,59429.0,59428.0,0.3608]
[1724975288712,0.204121,59429.0,59428.0,0.3608]
[1724975289321,0.704121,59429.0,59428.0,0.3608]
[1724975289521,0.704121,59429.0,59428.0,0.3618]
[1724975289721,0.73150834,59429.0,59428.0,0.3618]
[1724975290425,0.73150834,59429.0,59428.0,0.3628]
[1724975291023,0.73150834,59429.0,59423.0,0.00415254]
[1724975291024,0.084128,59424.0,59423.0,0.00415254]
[1724975291319,0.649056,59424.0,59423.0,0.00025254]
[1724975291823,1.17647186,59424.0,59423.0,0.00025254]
[1724975292521,0.9164808,59424.0,59423.0,0.00025254]
[1724975292722,0.9184808,59424.0,59423.0,0.00125254]
[1724975293637,0.9204808,59424.0,59423.0,0.00225254]
[1724975293823,1.0046088,59424.0,59423.0,0.00225254]
[1724975295123,1.03546714,59424.0,59423.0,0.00225254]
[1724975296536,2.22443514,59424.0,59423.0,0.00225254]
[1724975296732,0.084147,59411.0,59407.0,0.084152]
[1724975296935,0.12,59410.0,59407.0,0.084152]
[1724975297242,0.5,59409.0,59407.0,0.084152]
[1724975298126,0.5,59409.0,59407.0,0.088152]
[1724975298840,0.584149,59409.0,59407.0,0.093152]
[1724975299433,0.084151,59408.0,59407.0,0.009]
[1724975300028,0.584151,59408.0,59407.0,0.009]
[1724975300233,0.584151,59408.0,59407.0,0.005]
[1724975300428,0.584151,59408.0,59407.0,0.009]
[1724975300730,0.084151,59408.0,59407.0,0.009]
[1724975301141,0.584151,59408.0,59407.0,0.009]
[1724975301522,0.084151,59408.0,59407.0,0.009]
[1724975301730,0.084151,59408.0,59407.0,0.004]
[1724975302043,0.084151,59408.0,59407.0,0.009]
[1724975302231,0.584151,59408.0,59407.0,0.009]
[1724975302536,0.084151,59408.0,59407.0,0.009]
[1724975303143,0.584151,59408.0,59407.0,0.009]
[1724975303535,0.084151,59408.0,59407.0,0.009]
[1724975303837,0.52799406,59409.0,59408.0,0.084151]
[1724975304045,0.03031576,59411.0,59408.0,0.084151]
[1724975304046,0.05830982,59411.0,59408.0,0.084151]
[1724975304231,0.5,59409.0,59408.0,0.084151]
[1724975304632,0.52799406,59411.0,59408.0,0.084151]
[1724975304842,0.52799406,59411.0,59407.0,0.009]
[1724975305041,0.52799406,59411.0,59407.0,0.004]
[1724975305042,0.084151,59408.0,59407.0,0.004]
[1724975305340,0.52799406,59411.0,59408.0,0.004]
[1724975305839,0.52799406,59411.0,59407.0,0.004]
[1724975306045,0.52799406,59411.0,59407.0,0.009]
[1724975306349,0.52799406,59411.0,59408.0,0.08415]
[1724975306735,0.52799406,59411.0,59408.0,0.08815]
[1724975306934,0.52799406,59411.0,59408.0,0.09115]
[1724975307242,0.5,59411.0,59408.0,0.09115]
[1724975307432,0.5280148,59411.0,59408.0,0.09115]
[1724975308543,0.5280148,59411.0,59409.0,0.084149]
[1724975309435,0.5280148,59411.0,59410.0,0.084148]
[1724975309940,0.5,59411.0,59410.0,0.084148]
[1724975310644,0.52797508,59411.0,59410.0,0.084148]
[1724975310845,0.52797508,59411.0,59410.0,0.085148]
[1724975312339,0.52797508,59411.0,59410.0,0.087148]
[1724975317643,0.5,59411.0,59410.0,0.087148]
[1724975321646,0.52797508,59411.0,59410.0,0.087148]
[1724975329540,0.5,59411.0,59410.0,0.087148]
[1724975332247,0.5,59411.0,59410.0,0.207148]
[1724975333755,0.5,59411.0,59410.0,0.567948]
[1724975336049,0.5,59411.0,59410.0,0.447948]
[1724975339755,0.5,59411.0,59410.0,0.567948]
[1724975340155,0.5,59411.0,59410.0,0.447948]
[1724975341160,0.5,59411.0,59410.0,0.567948]
[1724975341459,0.5,59418.0,59417.0,0.084138]
[1724975341660,0.5,59418.0,59417.0,0.444938]
[1724975342056,0.53075323,59419.0,59418.0,0.084136]
[1724975342258,0.5,59419.0,59418.0,0.084136]
[1724975344566,0.503,59419.0,59418.0,0.085136]
[1724975344770,0.505,59419.0,59418.0,0.086136]
[1724975346471,0.505,59419.0,59418.0,0.143636]
[1724975347374,0.505,59419.0,59418.0,0.263636]
[1724975347766,0.005,59419.0,59418.0,0.263636]
[1724975349374,0.005,59419.0,59418.0,0.624436]
[1724975349777,0.005,59419.0,59418.0,0.263636]
[1724975349963,0.005,59419.0,59418.0,0.624436]
[1724975351068,0.005,59419.0,59418.0,0.263636]
[1724975351270,0.005,59419.0,59418.0,0.504436]
[1724975351579,0.209135,59419.0,59418.0,0.446936]
[1724975353068,0.209135,59419.0,59418.0,0.3628]
[1724975353272,0.267535,59419.0,59418.0,0.3628]
[1724975353880,0.767535,59419.0,59418.0,0.3628]
[1724975354281,0.78932045,59419.0,59418.0,0.3628]
[1724975359282,0.66932045,59419.0,59418.0,0.3628]
[1724975359481,0.78932045,59419.0,59418.0,0.3628]
[1724975359979,0.73092045,59419.0,59418.0,0.3628]
[1724975360178,0.61092045,59419.0,59418.0,0.3628]
[1724975361783,0.32873209,59419.0,59418.0,0.446936]
[1724975361989,0.03057271,59420.0,59419.0,0.084135]
[1724975362190,0.5,59422.0,59421.0,0.084132]
[1724975362388,0.03111876,59424.0,59422.0,0.08413]
[1724975362589,0.00025254,59424.0,59423.0,0.564929]
[1724975364481,0.00025254,59424.0,59423.0,0.565929]
[1724975364882,0.00025254,59424.0,59423.0,0.566929]
[1724975366186,0.00025254,59424.0,59423.0,0.927729]
[1724975372492,0.00025254,59424.0,59423.0,0.807729]
[1724975372687,0.12025254,59424.0,59423.0,0.807729]
[1724975372993,0.12025254,59424.0,59423.0,0.7236]
[1724975373802,0.70438054,59424.0,59423.0,0.7236]
[1724975374298,0.70438054,59424.0,59423.0,0.002]
[1724975374499,0.72616599,59424.0,59423.0,0.002]
[1724975380007,0.60616599,59424.0,59423.0,0.002]
[1724975380208,0.52203799,59424.0,59423.0,0.086129]
[1724975380707,0.50025254,59424.0,59423.0,0.086129]
[1724975385214,0.50025254,59424.0,59423.0,0.446929]
[1724975386113,0.70438054,59424.0,59423.0,0.3628]
[1724975386413,0.72616599,59424.0,59423.0,0.3628]
[1724975391111,0.72616599,59424.0,59423.0,0.002]
[1724975396123,1.08696599,59424.0,59423.0,0.002]
[1724975396331,1.17109399,59424.0,59423.0,0.002]
[1724975396925,1.67593399,59424.0,59423.0,0.002]
[1724975397125,1.17109399,59424.0,59423.0,0.002]
[1724975398334,1.22284599,59424.0,59423.0,0.002]
[1724975399938,1.08696599,59424.0,59423.0,0.002]
[1724975400421,0.72616599,59424.0,59423.0,0.002]
[1724975400624,0.72616599,59424.0,59423.0,0.086129]
[1724975400625,0.52203799,59424.0,59423.0,0.086129]
[1724975401037,0.50025254,59424.0,59423.0,0.086129]
[1724975401427,0.00025254,59424.0,59423.0,0.086129]
[1724975401739,0.08438054,59424.0,59423.0,0.002]
[1724975401923,0.13758054,59424.0,59423.0,0.002]
[1724975402123,0.42758054,59424.0,59423.0,0.002]
[1724975402336,0.44936599,59424.0,59423.0,0.002]
[1724975402843,0.92758054,59424.0,59423.0,0.002]
[1724975403134,0.81016599,59424.0,59423.0,0.002]
[1724975403330,0.084134,59420.0,59419.0,0.3608]
[1724975403523,0.374134,59420.0,59419.0,0.3608]
[1724975403734,0.084138,59417.0,59416.0,0.00025254]
[1724975403941,0.444938,59417.0,59416.0,0.00025254]
[1724975404326,0.084145,59412.0,59411.0,0.0039]
[1724975404532,0.084147,59411.0,59407.0,0.0039]
[1724975404840,0.5,59410.0,59406.0,0.049]
[1724975405542,0.499,59410.0,59406.0,0.049]
[1724975406541,0.583148,59410.0,59406.0,0.049]
[1724975406933,0.084149,59409.0,59408.0,0.3638]
[1724975407333,0.10593445,59409.0,59408.0,0.3638]
[1724975407532,0.584149,59409.0,59408.0,0.3638]
[1724975407740,0.60593445,59409.0,59408.0,0.3678]
[1724975408542,0.60593445,59409.0,59408.0,0.003]
[1724975408835,0.60593445,59409.0,59408.0,0.007]
[1724975409642,0.60593445,59409.0,59408.0,0.004]
[1724975409939,0.60593445,59409.0,59408.0,0.007]
[1724975410148,0.41131538,59409.0,59408.0,0.007]
[1724975410837,0.49546438,59409.0,59408.0,0.007]
[1724975411732,0.47367893,59409.0,59408.0,0.007]
[1724975412335,1.57863893,59409.0,59408.0,0.007]
[1724975412536,1.60042438,59409.0,59408.0,0.007]
[1724975413051,1.00042438,59409.0,59408.0,0.007]
[1724975413236,1.60042438,59409.0,59408.0,0.007]
[1724975413437,0.49546438,59409.0,59408.0,0.007]
[1724975413638,0.60959893,59409.0,59408.0,0.007]
[1724975413833,0.63138438,59409.0,59408.0,0.007]
[1724975418744,1.13634438,59409.0,59408.0,0.007]
[1724975419138,0.63138438,59409.0,59408.0,0.007]
[1724975419339,0.63138438,59409.0,59403.0,0.00415254]
[1724975419340,0.084156,59404.0,59403.0,0.00415254]
[1724975419537,0.374156,59404.0,59403.0,0.00025254]
[1724975420049,0.78325446,59404.0,59403.0,0.00025254]
[1724975420345,0.75674145,59404.0,59399.0,0.0039]
[1724975420548,0.084168,59396.0,59395.0,0.0039]
[1724975420753,0.374168,59396.0,59394.0,0.0498]
[1724975420938,0.365168,59396.0,59394.0,0.0498]
[1724975421138,0.40909846,59395.0,59394.0,0.0498]
[1724975421347,0.40009846,59395.0,59394.0,0.0498]
[1724975422546,0.41864793,59395.0,59394.0,0.0498]
[1724975423138,0.41964793,59395.0,59394.0,0.0698]
[1724975423845,0.42064793,59395.0,59394.0,0.0698]
[1724975424952,0.42064793,59395.0,59394.0,0.51477]
[1724975429258,0.42064793,59395.0,59394.0,0.15397]
[1724975431163,0.50481693,59395.0,59394.0,0.02]
[1724975432957,0.50381693,59395.0,59394.0,0.009]
[1724975433261,0.08417,59394.0,59393.0,0.0509]
[1724975433454,0.37117,59394.0,59393.0,0.0509]
[1724975434153,0.75926846,59394.0,59393.0,0.0509]
[1724975434355,0.75726846,59394.0,59393.0,0.001]
[1724975434754,1.11806846,59394.0,59393.0,0.001]
[1724975435056,1.11806846,59394.0,59393.0,0.004]
[1724975435850,1.11806846,59394.0,59389.0,0.00025254]
[1724975435851,0.084176,59390.0,59389.0,0.00025254]
[1724975436255,0.084183,59385.0,59384.0,0.0039]
[1724975436452,0.084183,59385.0,59380.0,0.08419]
[1724975436947,0.38109846,59384.0,59380.0,0.08419]
[1724975437153,0.38009846,59384.0,59380.0,0.08419]
[1724975437658,0.38009846,59384.0,59380.0,0.08519]
[1724975437852,0.38009846,59384.0,59380.0,0.08919]
[1724975439348,0.38109846,59384.0,59380.0,0.08819]
[1724975439547,0.38109846,59384.0,59383.0,0.444986]
[1724975439961,0.001,59384.0,59383.0,0.444986]
[1724975440262,0.002,59384.0,59383.0,0.444986]
[1724975440862,0.002,59384.0,59383.0,0.950186]
[1724975441059,0.001,59384.0,59383.0,0.950186]
[1724975441360,0.002,59384.0,59383.0,0.444986]
[1724975441755,0.38209845,59384.0,59383.0,0.444986]
[1724975442654,0.002,59384.0,59383.0,0.444986]
[1724975443459,0.002,59384.0,59383.0,0.497886]
[1724975452468,0.002,59384.0,59383.0,0.444986]
[1724975458967,0.002,59384.0,59383.0,0.084186]
[1724975459971,0.002,59384.0,59383.0,0.204186]
[1724975460271,0.001,59384.0,59383.0,0.204186]
[1724975460466,0.002,59384.0,59383.0,0.204186]
[1724975462069,0.002,59384.0,59383.0,0.084186]
[1724975462978,0.002,59384.0,59383.0,0.168372]
[1724975463275,0.002,59384.0,59383.0,0.19826507]
[1724975463671,0.002,59384.0,59383.0,0.11407907]
[1724975464171,0.0039,59393.0,59392.0,0.084173]
[1724975464481,0.051,59405.0,59392.0,0.3608]
[1724975464482,0.0039,59401.0,59392.0,0.3608]
[1724975464681,0.0039,59401.0,59393.0,0.3931]
[1724975464875,0.03081813,59399.0,59394.0,0.08417]
[1724975465877,0.03081813,59399.0,59394.0,0.58925]
[1724975466067,0.0039,59401.0,59394.0,0.58925]
[1724975466263,0.00525254,59395.0,59394.0,0.58925]
[1724975466873,0.00725254,59395.0,59394.0,0.58925]
[1724975467574,0.01325254,59395.0,59394.0,0.58925]
[1724975467775,0.01325254,59395.0,59394.0,0.08417]
[1724975473280,0.01325254,59395.0,59394.0,0.80577]
[1724975477188,0.01325254,59395.0,59394.0,0.08417]
[1724975477370,0.01325254,59395.0,59394.0,0.80577]
[1724975477572,0.01325254,59395.0,59394.0,0.08417]
[1724975477779,0.01325254,59395.0,59394.0,0.80577]
[1724975479884,0.01325254,59395.0,59394.0,0.08417]
[1724975480083,0.01325254,59395.0,59394.0,0.80577]
[1724975482088,0.01325254,59395.0,59394.0,0.92577]
[1724975482584,0.01325254,59395.0,59394.0,0.80577]
[1724975483282,0.13325254,59395.0,59394.0,0.80577]
[1724975484079,0.13325254,59395.0,59394.0,0.44497]
[1724975484475,0.21742154,59395.0,59394.0,0.44497]
[1724975486283,0.21742154,59395.0,59394.0,0.3608]
[1724975486685,0.59751999,59395.0,59394.0,0.3608]
[1724975487194,0.21742154,59395.0,59394.0,0.3608]
[1724975487710,0.59751999,59395.0,59394.0,0.3608]
[1724975487922,0.21742154,59395.0,59394.0,0.3608]
[1724975488614,0.59751999,59395.0,59394.0,0.3608]
[1724975488815,0.21742154,59395.0,59394.0,0.3608]
[1724975489003,0.21742154,59395.0,59391.0,0.3608]
[1724975489206,0.12,59392.0,59391.0,0.3608]
[1724975489911,0.50009845,59392.0,59391.0,0.3608]
[1724975490118,0.58427145,59392.0,59391.0,0.3608]
[1724975490308,0.35977081,59393.0,59391.0,0.3608]
[1724975490510,0.123,59392.0,59388.0,0.08443054]
[1724975490814,0.12,59389.0,59388.0,0.08443054]
[1724975491407,0.47977082,59389.0,59388.0,0.08443054]
[1724975492314,0.35977082,59389.0,59388.0,0.08443054]
[1724975492621,0.35977082,59389.0,59388.0,0.56523054]
[1724975492921,0.003,59393.0,59392.0,0.084173]
[1724975492922,0.36277082,59393.0,59392.0,0.084173]
[1724975493420,0.35977082,59393.0,59392.0,0.084173]
[1724975495018,0.36477082,59393.0,59392.0,0.084173]
[1724975495411,0.36477082,59393.0,59392.0,0.444973]
[1724975496028,0.36877082,59393.0,59392.0,0.444973]
[1724975496520,0.3991798,59393.0,59392.0,0.444973]
[1724975500011,0.3991798,59393.0,59392.0,0.084173]
[1724975514130,0.5191798,59393.0,59392.0,0.084173]
[1724975519724,0.5191798,59393.0,59390.0,0.3608]
[1724975519725,0.084174,59392.0,59390.0,0.3608]
[1724975519921,0.12,59391.0,59390.0,0.3608]
[1724975520121,0.47977082,59391.0,59390.0,0.3608]
[1724975520826,0.47977082,59391.0,59389.0,0.084177]
[1724975521037,0.47977082,59391.0,59390.0,0.3608]
[1724975521524,0.48177082,59391.0,59390.0,0.3608]
[1724975523927,0.56694582,59391.0,59390.0,0.3608]
[1724975524126,0.56694582,59391.0,59389.0,0.084177]
[1724975524532,0.0557,59390.0,59389.0,0.084177]
[1724975524728,0.084178,59389.0,59388.0,0.00025254]
[1724975524930,0.44394882,59389.0,59388.0,0.00025254]
[1724975525225,0.084178,59389.0,59388.0,0.00025254]
[1724975525431,0.44394882,59389.0,59388.0,0.00025254]
[1724975526136,0.35977082,59389.0,59388.0,0.00025254]
[1724975528844,0.44394882,59389.0,59388.0,0.00025254]
[1724975529524,0.49574882,59389.0,59388.0,0.00025254]
[1724975539045,0.49574882,59389.0,59382.0,0.0039]
[1724975539046,0.084184,59385.0,59382.0,0.0039]
[1724975539335,0.35977082,59384.0,59379.0,0.084191]
[1724975539540,0.12,59380.0,59379.0,0.084191]
[1724975540233,0.47877082,59380.0,59379.0,0.084191]
[1724975540437,0.35977082,59380.0,59379.0,0.084191]
[1724975540640,0.12,59380.0,59379.0,0.084191]
[1724975540845,0.12,59380.0,59379.0,0.085191]
[1724975541036,0.121,59380.0,59379.0,0.085191]
[1724975541237,0.48077082,59380.0,59379.0,0.085191]
[1724975541543,0.122,59380.0,59379.0,0.085191]
[1724975542340,0.48177082,59380.0,59379.0,0.085191]
[1724975542542,0.122,59380.0,59379.0,0.085191]
[1724975543141,0.48177082,59380.0,59379.0,0.085191]
[1724975543644,0.122,59380.0,59379.0,0.085191]
[1724975544636,0.48177082,59380.0,59379.0,0.085191]
[1724975545035,0.122,59380.0,59379.0,0.085191]
[1724975545243,0.03169434,59380.0,59379.0,0.085191]
[1724975545635,0.51146516,59380.0,59379.0,0.085191]
[1724975546038,0.15169434,59380.0,59379.0,0.085191]
[1724975546640,0.51146516,59380.0,59379.0,0.085191]
[1724975547037,0.15169434,59380.0,59379.0,0.085191]
[1724975547938,0.51146516,59380.0,59379.0,0.085191]
[1724975548343,0.15169434,59380.0,59379.0,0.085191]
[1724975548845,0.51146516,59380.0,59379.0,0.085191]
[1724975549042,0.51146516,59380.0,59379.0,0.445991]